[Event "Titled Tuesday Blitz August 15 Early 2023"]
[White "arenal72"]
[Black "Akylbek2021"]
[WhiteElo "2492"]
[BlackElo "2356"]
[Result "1/2-1/2"]
[Round "9"]
[TimeControl "180+1"]
[Date "2023.08.15"]
[WhiteClock "0:00:33"]
[BlackClock "0:00:08"]
[Board "98"]

1. e4 {[%clk 0:03:00]}  c5 {[%clk 0:03:00]} 2. Nf3 {[%clk 0:03:00]}  Nc6 {[%clk 0:03:00]} 3. d4 {[%clk 0:03:00]}  cxd4 {[%clk 0:03:01]} 4. Nxd4 {[%clk 0:03:00]}  g6 {[%clk 0:03:01]} 5. Nc3 {[%clk 0:03:00]}  Bg7 {[%clk 0:03:02]} 6. Be3 {[%clk 0:03:00]}  Nf6 {[%clk 0:03:02]} 7. Be2 {[%clk 0:02:57]}  O-O {[%clk 0:03:02]} 8. Qd2 {[%clk 0:02:57]}  d5 {[%clk 0:02:59]} 9. Nxc6 {[%clk 0:02:57]}  bxc6 {[%clk 0:02:59]} 10. O-O-O {[%clk 0:02:57]}  Be6 {[%clk 0:02:57]} 11. e5 {[%clk 0:02:52]}  Nd7 {[%clk 0:02:52]} 12. f4 {[%clk 0:02:50]}  Qa5 {[%clk 0:02:45]} 13. Kb1 {[%clk 0:02:42]}  Rab8 {[%clk 0:02:40]} 14. b3 {[%clk 0:02:28]}  Nb6 {[%clk 0:02:28]} 15. Nxd5 {[%clk 0:02:21]}  Qxd5 {[%clk 0:02:07]} 16. Qb4 {[%clk 0:02:12]}  Nc4 {[%clk 0:01:47]} 17. Rxd5 {[%clk 0:01:54]}  Rxb4 {[%clk 0:01:45]} 18. Rd4 {[%clk 0:01:55]}  Na3+ {[%clk 0:01:15]} 19. Kb2 {[%clk 0:01:51]}  Rxd4 {[%clk 0:01:15]} 20. Bxd4 {[%clk 0:01:52]}  Nb5 {[%clk 0:01:15]} 21. Bc5 {[%clk 0:01:52]}  f6 {[%clk 0:01:12]} 22. Bxe7 {[%clk 0:01:50]}  Rf7 {[%clk 0:01:09]} 23. Bxf6 {[%clk 0:01:47]}  Bxf6 {[%clk 0:01:05]} 24. exf6 {[%clk 0:01:47]}  Rxf6 {[%clk 0:01:06]} 25. g3 {[%clk 0:01:48]}  Bd5 {[%clk 0:01:05]} 26. Rd1 {[%clk 0:01:46]}  Nc7 {[%clk 0:01:02]} 27. c4 {[%clk 0:01:46]}  Bg2 {[%clk 0:01:01]} 28. Rd7 {[%clk 0:01:43]}  Rf7 {[%clk 0:01:01]} 29. Rd2 {[%clk 0:01:41]}  Be4 {[%clk 0:00:59]} 30. Kc3 {[%clk 0:01:34]}  c5 {[%clk 0:00:58]} 31. Bg4 {[%clk 0:01:21]}  Re7 {[%clk 0:00:58]} 32. Re2 {[%clk 0:01:15]}  Kf7 {[%clk 0:00:58]} 33. a3 {[%clk 0:01:09]}  h5 {[%clk 0:00:58]} 34. Bh3 {[%clk 0:01:06]}  a5 {[%clk 0:00:58]} 35. b4 {[%clk 0:01:02]}  axb4+ {[%clk 0:00:59]} 36. axb4 {[%clk 0:01:01]}  cxb4+ {[%clk 0:00:50]} 37. Kxb4 {[%clk 0:01:00]}  Na6+ {[%clk 0:00:48]} 38. Kb5 {[%clk 0:00:59]}  Bc6+ {[%clk 0:00:47]} 39. Kxc6 {[%clk 0:00:55]}  Rxe2 {[%clk 0:00:47]} 40. Bc8 {[%clk 0:00:52]}  Nb4+ {[%clk 0:00:45]} 41. Kc5 {[%clk 0:00:52]}  Nd3+ {[%clk 0:00:44]} 42. Kd4 {[%clk 0:00:52]}  Nb4 {[%clk 0:00:44]} 43. h3 {[%clk 0:00:48]}  Nc6+ {[%clk 0:00:41]} 44. Kc5 {[%clk 0:00:47]}  Ne7 {[%clk 0:00:41]} 45. Bd7 {[%clk 0:00:46]}  Re3 {[%clk 0:00:40]} 46. g4 {[%clk 0:00:45]}  hxg4 {[%clk 0:00:34]} 47. hxg4 {[%clk 0:00:44]}  Re4 {[%clk 0:00:35]} 48. f5 {[%clk 0:00:44]}  g5 {[%clk 0:00:35]} 49. Kb5 {[%clk 0:00:40]}  Kf6 {[%clk 0:00:35]} 50. c5 {[%clk 0:00:40]}  Rxg4 {[%clk 0:00:36]} 51. c6 {[%clk 0:00:40]}  Rf4 {[%clk 0:00:34]} 52. c7 {[%clk 0:00:39]}  Rxf5+ {[%clk 0:00:34]} 53. Bxf5 {[%clk 0:00:34]}  Kxf5 {[%clk 0:00:35]} 54. Kc5 {[%clk 0:00:35]}  Ke6 {[%clk 0:00:33]} 55. Kd4 {[%clk 0:00:35]}  Kd6 {[%clk 0:00:33]} 56. Ke4 {[%clk 0:00:33]}  Kxc7 {[%clk 0:00:08]} 57. Kf3 {[%clk 0:00:33]} 1/2-1/2


[Site "https://www.chess.com"]

[Event "Titled Tuesday Blitz August 15 Early 2023"]
[White "Reprintsev, Alexander"]
[Black "Jahnz, Fabian"]
[WhiteFideId "14100541"]
[BlackFideId "4653300"]
[WhiteElo "2490"]
[BlackElo "2354"]
[Result "1-0"]
[Round "9"]
[TimeControl "180+1"]
[Date "2023.08.15"]
[WhiteClock "0:00:17"]
[BlackClock "0:00:08"]
[Board "100"]

1. e4 {[%clk 0:02:55]}  c6 {[%clk 0:03:00]} 2. Nc3 {[%clk 0:02:42]}  d5 {[%clk 0:03:01]} 3. Nf3 {[%clk 0:02:42]}  dxe4 {[%clk 0:03:01]} 4. Nxe4 {[%clk 0:02:42]}  Nf6 {[%clk 0:03:01]} 5. Qe2 {[%clk 0:02:41]}  Nxe4 {[%clk 0:03:02]} 6. Qxe4 {[%clk 0:02:41]}  Qd5 {[%clk 0:03:02]} 7. Qe3 {[%clk 0:02:38]}  Qe6 {[%clk 0:02:54]} 8. Be2 {[%clk 0:02:33]}  Qxe3 {[%clk 0:02:54]} 9. fxe3 {[%clk 0:02:32]}  f6 {[%clk 0:02:53]} 10. d4 {[%clk 0:02:31]}  Bf5 {[%clk 0:02:51]} 11. c4 {[%clk 0:02:27]}  e6 {[%clk 0:02:44]} 12. Bd2 {[%clk 0:02:26]}  Nd7 {[%clk 0:02:43]} 13. Bc3 {[%clk 0:02:12]}  Be7 {[%clk 0:02:41]} 14. h3 {[%clk 0:02:10]}  h5 {[%clk 0:02:37]} 15. Nd2 {[%clk 0:02:02]}  O-O-O {[%clk 0:02:31]} 16. e4 {[%clk 0:02:02]}  Bg6 {[%clk 0:02:30]} 17. O-O-O {[%clk 0:02:00]}  e5 {[%clk 0:02:26]} 18. g4 {[%clk 0:01:47]}  exd4 {[%clk 0:02:20]} 19. Bxd4 {[%clk 0:01:47]}  Nc5 {[%clk 0:02:14]} 20. gxh5 {[%clk 0:01:37]}  Rxd4 {[%clk 0:01:30]} 21. hxg6 {[%clk 0:01:36]}  Nxe4 {[%clk 0:01:28]} 22. Bg4+ {[%clk 0:01:24]}  Kc7 {[%clk 0:01:25]} 23. Rhe1 {[%clk 0:01:21]}  Nf2 {[%clk 0:01:17]} 24. Rxe7+ {[%clk 0:01:20]}  Kd8 {[%clk 0:01:16]} 25. Rxb7 {[%clk 0:01:13]}  Rh6 {[%clk 0:01:02]} 26. Nb3 {[%clk 0:00:49]}  Rxd1+ {[%clk 0:00:48]} 27. Bxd1 {[%clk 0:00:48]}  Rxg6 {[%clk 0:00:46]} 28. Bg4 {[%clk 0:00:45]}  Nxg4 {[%clk 0:00:44]} 29. hxg4 {[%clk 0:00:44]}  Rxg4 {[%clk 0:00:45]} 30. c5 {[%clk 0:00:44]}  a5 {[%clk 0:00:43]} 31. Nxa5 {[%clk 0:00:41]}  g5 {[%clk 0:00:33]} 32. Nxc6+ {[%clk 0:00:40]}  Kc8 {[%clk 0:00:33]} 33. Rb4 {[%clk 0:00:35]}  Rg1+ {[%clk 0:00:32]} 34. Kd2 {[%clk 0:00:35]}  Kc7 {[%clk 0:00:33]} 35. Ne7 {[%clk 0:00:34]}  g4 {[%clk 0:00:32]} 36. Ke2 {[%clk 0:00:32]}  g3 {[%clk 0:00:30]} 37. Kf3 {[%clk 0:00:32]}  Kd7 {[%clk 0:00:27]} 38. Ng6 {[%clk 0:00:28]}  Kc6 {[%clk 0:00:27]} 39. Rc4 {[%clk 0:00:25]}  g2 {[%clk 0:00:25]} 40. b4 {[%clk 0:00:19]}  Kb5 {[%clk 0:00:24]} 41. Rc2 {[%clk 0:00:18]}  Rd1 {[%clk 0:00:17]} 42. Kxg2 {[%clk 0:00:18]}  Kxb4 {[%clk 0:00:17]} 43. c6 {[%clk 0:00:17]}  Rd8 {[%clk 0:00:08]} 44. c7 {[%clk 0:00:17]} 1-0


[Site "https://www.chess.com"]

[Event "Titled Tuesday Blitz August 15 Early 2023"]
[White "Pandey Srishti"]
[Black "Ouellet, Maili-Jade"]
[WhiteFideId "35093290"]
[BlackFideId "2620472"]
[WhiteElo "2476"]
[BlackElo "2311"]
[Result "0-1"]
[Round "9"]
[TimeControl "180+1"]
[Date "2023.08.15"]
[WhiteClock "0:00:37"]
[BlackClock "0:00:06"]
[Board "102"]

1. e4 {[%clk 0:03:00]}  e5 {[%clk 0:02:57]} 2. Nf3 {[%clk 0:03:00]}  d6 {[%clk 0:02:58]} 3. Nc3 {[%clk 0:02:58]}  Nf6 {[%clk 0:02:57]} 4. Be2 {[%clk 0:02:57]}  Be7 {[%clk 0:02:55]} 5. O-O {[%clk 0:02:58]}  c5 {[%clk 0:02:54]} 6. a3 {[%clk 0:02:56]}  O-O {[%clk 0:02:53]} 7. b4 {[%clk 0:02:56]}  Nc6 {[%clk 0:02:48]} 8. bxc5 {[%clk 0:02:49]}  dxc5 {[%clk 0:02:48]} 9. h3 {[%clk 0:02:49]}  h6 {[%clk 0:02:47]} 10. Bc4 {[%clk 0:02:49]}  a6 {[%clk 0:02:30]} 11. a4 {[%clk 0:02:48]}  Qc7 {[%clk 0:02:28]} 12. Rb1 {[%clk 0:02:48]}  Nd4 {[%clk 0:02:23]} 13. d3 {[%clk 0:02:47]}  Be6 {[%clk 0:02:06]} 14. Nxd4 {[%clk 0:02:42]}  cxd4 {[%clk 0:02:03]} 15. Bxe6 {[%clk 0:02:43]}  fxe6 {[%clk 0:02:02]} 16. Ne2 {[%clk 0:02:42]}  Rac8 {[%clk 0:01:56]} 17. f4 {[%clk 0:02:42]}  exf4 {[%clk 0:01:47]} 18. Nxf4 {[%clk 0:02:41]}  Qd7 {[%clk 0:01:43]} 19. Ng6 {[%clk 0:02:40]}  Rfe8 {[%clk 0:01:41]} 20. Bf4 {[%clk 0:02:33]}  Bd8 {[%clk 0:01:36]} 21. Qd2 {[%clk 0:02:28]}  Kh7 {[%clk 0:01:16]} 22. Ne5 {[%clk 0:02:27]}  Qxa4 {[%clk 0:01:10]} 23. Rxb7 {[%clk 0:02:18]}  Rxc2 {[%clk 0:01:09]} 24. Qe1 {[%clk 0:02:17]}  Re7 {[%clk 0:01:05]} 25. Rb8 {[%clk 0:02:11]}  Bc7 {[%clk 0:01:00]} 26. Rb4 {[%clk 0:02:10]}  Qe8 {[%clk 0:00:51]} 27. Qb1 {[%clk 0:01:57]}  Rc5 {[%clk 0:00:45]} 28. Nc4 {[%clk 0:01:44]}  Bxf4 {[%clk 0:00:40]} 29. Rxf4 {[%clk 0:01:45]}  Qh5 {[%clk 0:00:21]} 30. Rb8 {[%clk 0:01:37]}  Qe2 {[%clk 0:00:20]} 31. Rf2 {[%clk 0:01:33]}  Qh5 {[%clk 0:00:20]} 32. Qb6 {[%clk 0:01:29]}  Rb5 {[%clk 0:00:17]} 33. Qd6 {[%clk 0:01:27]}  Rxb8 {[%clk 0:00:16]} 34. Qxe7 {[%clk 0:01:27]}  Re8 {[%clk 0:00:15]} 35. Qa7 {[%clk 0:01:24]}  Qd1+ {[%clk 0:00:14]} 36. Kh2 {[%clk 0:01:22]}  Qxd3 {[%clk 0:00:14]} 37. Nd6 {[%clk 0:01:21]}  Rf8 {[%clk 0:00:13]} 38. e5 {[%clk 0:01:17]}  Ng4+ {[%clk 0:00:13]} 39. hxg4 {[%clk 0:01:17]}  Rxf2 {[%clk 0:00:14]} 40. Ne8 {[%clk 0:01:16]}  Qg6 {[%clk 0:00:13]} 41. Nf6+ {[%clk 0:01:16]}  Rxf6 {[%clk 0:00:13]} 42. exf6 {[%clk 0:01:16]}  Qxf6 {[%clk 0:00:14]} 43. Qxa6 {[%clk 0:01:16]}  Qf4+ {[%clk 0:00:14]} 44. Kg1 {[%clk 0:01:16]}  Qxg4 {[%clk 0:00:14]} 45. Qd3+ {[%clk 0:01:17]}  Kh8 {[%clk 0:00:12]} 46. Qc4 {[%clk 0:01:17]}  e5 {[%clk 0:00:12]} 47. Qd5 {[%clk 0:01:14]}  Qf4 {[%clk 0:00:12]} 48. Qd7 {[%clk 0:01:10]}  Kh7 {[%clk 0:00:12]} 49. Qc8 {[%clk 0:01:10]}  d3 {[%clk 0:00:11]} 50. Qc3 {[%clk 0:01:11]}  d2 {[%clk 0:00:09]} 51. Qc2+ {[%clk 0:01:11]}  e4 {[%clk 0:00:09]} 52. Kh1 {[%clk 0:01:05]}  h5 {[%clk 0:00:09]} 53. Kg1 {[%clk 0:01:04]}  Kh6 {[%clk 0:00:09]} 54. Qc6+ {[%clk 0:01:04]}  g6 {[%clk 0:00:08]} 55. Qd5 {[%clk 0:01:02]}  e3 {[%clk 0:00:07]} 56. Qd8 {[%clk 0:01:01]}  Qe5 {[%clk 0:00:03]} 57. g4 {[%clk 0:00:58]}  hxg4 {[%clk 0:00:03]} 58. Kg2 {[%clk 0:00:54]}  Kh5 {[%clk 0:00:03]} 59. Qg8 {[%clk 0:00:47]}  Qe4+ {[%clk 0:00:03]} 60. Kg1 {[%clk 0:00:45]}  Qf3 {[%clk 0:00:04]} 61. Qh7+ {[%clk 0:00:45]}  Kg5 {[%clk 0:00:04]} 62. Qe7+ {[%clk 0:00:45]}  Kf4 {[%clk 0:00:04]} 63. Qf6+ {[%clk 0:00:45]}  Ke4 {[%clk 0:00:05]} 64. Qc6+ {[%clk 0:00:45]}  Kd3 {[%clk 0:00:05]} 65. Qb5+ {[%clk 0:00:44]}  Kc2 {[%clk 0:00:06]} 66. Qc4+ {[%clk 0:00:43]}  Kd1 {[%clk 0:00:06]} 67. Qb3+ {[%clk 0:00:43]}  Ke1 {[%clk 0:00:07]} 68. Qd1+ {[%clk 0:00:41]}  Kxd1 {[%clk 0:00:06]} 69. Kh2 {[%clk 0:00:37]}  g3+ {[%clk 0:00:06]} 0-1


[Site "https://www.chess.com"]

[Event "Titled Tuesday Blitz August 15 Early 2023"]
[White "Molenda, Marcin"]
[Black "bteillet"]
[WhiteFideId "1173065"]
[WhiteElo "2471"]
[BlackElo "2274"]
[Result "1-0"]
[Round "9"]
[TimeControl "180+1"]
[Date "2023.08.15"]
[WhiteClock "0:00:15"]
[BlackClock "0:00:15"]
[Board "103"]

1. e4 {[%clk 0:03:00]}  d6 {[%clk 0:03:00]} 2. Bc4 {[%clk 0:02:59]}  Nf6 {[%clk 0:03:00]} 3. Nc3 {[%clk 0:02:58]}  g6 {[%clk 0:03:00]} 4. Nf3 {[%clk 0:02:57]}  Bg7 {[%clk 0:02:59]} 5. h3 {[%clk 0:02:57]}  O-O {[%clk 0:02:53]} 6. O-O {[%clk 0:02:57]}  Nxe4 {[%clk 0:02:48]} 7. Nxe4 {[%clk 0:02:51]}  d5 {[%clk 0:02:47]} 8. Bd3 {[%clk 0:02:52]}  dxe4 {[%clk 0:02:47]} 9. Bxe4 {[%clk 0:02:52]}  c6 {[%clk 0:02:44]} 10. d4 {[%clk 0:02:49]}  Be6 {[%clk 0:02:40]} 11. Bd3 {[%clk 0:02:42]}  Bd5 {[%clk 0:02:35]} 12. c3 {[%clk 0:02:38]}  Nd7 {[%clk 0:02:29]} 13. Bg5 {[%clk 0:02:38]}  h6 {[%clk 0:02:13]} 14. Bh4 {[%clk 0:02:37]}  g5 {[%clk 0:02:12]} 15. Bg3 {[%clk 0:02:20]}  f5 {[%clk 0:02:04]} 16. c4 {[%clk 0:02:08]}  Bxf3 {[%clk 0:01:56]} 17. Qxf3 {[%clk 0:02:09]}  f4 {[%clk 0:01:54]} 18. Bh2 {[%clk 0:02:09]}  Bxd4 {[%clk 0:01:51]} 19. Rad1 {[%clk 0:02:08]}  e5 {[%clk 0:01:51]} 20. Qe4 {[%clk 0:02:04]}  Qe7 {[%clk 0:01:41]} 21. Qg6+ {[%clk 0:01:50]}  Qg7 {[%clk 0:01:41]} 22. Qe6+ {[%clk 0:01:50]}  Kh8 {[%clk 0:01:36]} 23. b4 {[%clk 0:01:43]}  Rae8 {[%clk 0:01:35]} 24. Qg4 {[%clk 0:01:43]}  Nf6 {[%clk 0:01:33]} 25. Qf5 {[%clk 0:01:34]}  Nd5 {[%clk 0:01:12]} 26. Qe4 {[%clk 0:01:19]}  Nxb4 {[%clk 0:01:11]} 27. Bb1 {[%clk 0:01:18]}  Na6 {[%clk 0:01:08]} 28. Kh1 {[%clk 0:01:09]}  Nc5 {[%clk 0:01:08]} 29. Qc2 {[%clk 0:01:08]}  Ne6 {[%clk 0:01:03]} 30. f3 {[%clk 0:01:07]}  c5 {[%clk 0:01:02]} 31. g3 {[%clk 0:00:56]}  b6 {[%clk 0:00:57]} 32. g4 {[%clk 0:00:54]}  Rd8 {[%clk 0:00:51]} 33. Kg2 {[%clk 0:00:52]}  Be3 {[%clk 0:00:51]} 34. Bg1 {[%clk 0:00:43]}  Nd4 {[%clk 0:00:49]} 35. Qe4 {[%clk 0:00:43]}  Bxg1 {[%clk 0:00:43]} 36. Rxg1 {[%clk 0:00:44]}  Rd7 {[%clk 0:00:38]} 37. Rh1 {[%clk 0:00:44]}  Kg8 {[%clk 0:00:32]} 38. h4 {[%clk 0:00:44]}  Rf6 {[%clk 0:00:27]} 39. Qa8+ {[%clk 0:00:33]}  Rf8 {[%clk 0:00:26]} 40. Qe4 {[%clk 0:00:33]}  Rf6 {[%clk 0:00:26]} 41. Rh3 {[%clk 0:00:32]}  gxh4 {[%clk 0:00:23]} 42. Rxh4 {[%clk 0:00:32]}  Rg6 {[%clk 0:00:24]} 43. Qa8+ {[%clk 0:00:28]}  Kf7 {[%clk 0:00:22]} 44. Bxg6+ {[%clk 0:00:26]}  Qxg6 {[%clk 0:00:22]} 45. Qc8 {[%clk 0:00:23]}  Ke7 {[%clk 0:00:22]} 46. Rf1 {[%clk 0:00:21]}  Qc2+ {[%clk 0:00:21]} 47. Rf2 {[%clk 0:00:22]}  Qg6 {[%clk 0:00:19]} 48. Rh5 {[%clk 0:00:22]}  Ne6 {[%clk 0:00:19]} 49. Rxe5 {[%clk 0:00:21]}  Kd6 {[%clk 0:00:19]} 50. Rd5+ {[%clk 0:00:18]}  Ke7 {[%clk 0:00:19]} 51. Qxd7+ {[%clk 0:00:17]}  Kf6 {[%clk 0:00:19]} 52. Rd6 {[%clk 0:00:16]}  Qf7 {[%clk 0:00:16]} 53. Re2 {[%clk 0:00:15]}  h5 {[%clk 0:00:16]} 54. Rexe6+ {[%clk 0:00:15]}  Kg7 {[%clk 0:00:16]} 55. Re7 {[%clk 0:00:15]}  hxg4 {[%clk 0:00:15]} 56. Rxf7+ {[%clk 0:00:14]}  Kg8 {[%clk 0:00:15]} 57. Qe8# {[%clk 0:00:15]} 1-0


[Site "https://www.chess.com"]

[Event "Titled Tuesday Blitz August 15 Early 2023"]
[White "Starozhilov, Leonid"]
[Black "Zaichenko, Daria"]
[WhiteFideId "14106752"]
[BlackFideId "4197453"]
[WhiteElo "2673"]
[BlackElo "2245"]
[Result "1-0"]
[Round "9"]
[TimeControl "180+1"]
[Date "2023.08.15"]
[WhiteClock "0:00:25"]
[BlackClock "0:00:43"]
[Board "105"]

1. e4 {[%clk 0:02:59]}  c5 {[%clk 0:02:56]} 2. Nc3 {[%clk 0:02:58]}  Nc6 {[%clk 0:02:51]} 3. Bb5 {[%clk 0:02:57]}  g6 {[%clk 0:02:45]} 4. Bxc6 {[%clk 0:02:54]}  dxc6 {[%clk 0:02:44]} 5. d3 {[%clk 0:02:55]}  Bg7 {[%clk 0:02:41]} 6. h3 {[%clk 0:02:51]}  e5 {[%clk 0:02:35]} 7. Nge2 {[%clk 0:02:44]}  Ne7 {[%clk 0:02:29]} 8. f4 {[%clk 0:02:42]}  exf4 {[%clk 0:02:27]} 9. Bxf4 {[%clk 0:02:42]}  f5 {[%clk 0:02:26]} 10. Qd2 {[%clk 0:02:42]}  fxe4 {[%clk 0:02:25]} 11. Bh6 {[%clk 0:02:18]}  Bxh6 {[%clk 0:02:08]} 12. Qxh6 {[%clk 0:02:17]}  Nf5 {[%clk 0:02:07]} 13. Qf4 {[%clk 0:02:17]}  exd3 {[%clk 0:02:03]} 14. O-O-O {[%clk 0:02:07]}  Qd6 {[%clk 0:01:53]} 15. Qe4+ {[%clk 0:01:35]}  Qe6 {[%clk 0:01:51]} 16. Rxd3 {[%clk 0:01:26]}  Qxe4 {[%clk 0:01:49]} 17. Nxe4 {[%clk 0:01:25]}  O-O {[%clk 0:01:40]} 18. Nxc5 {[%clk 0:01:25]}  b6 {[%clk 0:01:36]} 19. Ne4 {[%clk 0:01:25]}  Ba6 {[%clk 0:01:36]} 20. Rd2 {[%clk 0:01:20]}  Bxe2 {[%clk 0:01:32]} 21. Rxe2 {[%clk 0:01:20]}  Rae8 {[%clk 0:01:31]} 22. Nf6+ {[%clk 0:01:15]}  Rxf6 {[%clk 0:01:24]} 23. Rxe8+ {[%clk 0:01:15]}  Kg7 {[%clk 0:01:24]} 24. Rd1 {[%clk 0:01:10]}  Ng3 {[%clk 0:01:22]} 25. Re7+ {[%clk 0:01:06]}  Kh6 {[%clk 0:01:22]} 26. Rxa7 {[%clk 0:00:53]}  Rf2 {[%clk 0:01:20]} 27. Ra6 {[%clk 0:00:46]}  Nf1 {[%clk 0:01:13]} 28. Rxb6 {[%clk 0:00:38]}  Ne3 {[%clk 0:01:11]} 29. Rxc6 {[%clk 0:00:35]}  Nxd1 {[%clk 0:01:10]} 30. Kxd1 {[%clk 0:00:35]}  Rxg2 {[%clk 0:01:10]} 31. a4 {[%clk 0:00:35]}  Kg5 {[%clk 0:01:04]} 32. Rc3 {[%clk 0:00:30]}  Kf4 {[%clk 0:00:56]} 33. a5 {[%clk 0:00:27]}  Rg5 {[%clk 0:00:54]} 34. a6 {[%clk 0:00:25]}  Ra5 {[%clk 0:00:53]} 35. Ra3 {[%clk 0:00:25]}  Rd5+ {[%clk 0:00:45]} 36. Ke2 {[%clk 0:00:25]}  Rd8 {[%clk 0:00:45]} 37. a7 {[%clk 0:00:24]}  Ra8 {[%clk 0:00:45]} 38. b4 {[%clk 0:00:24]}  g5 {[%clk 0:00:45]} 39. b5 {[%clk 0:00:24]}  h5 {[%clk 0:00:45]} 40. b6 {[%clk 0:00:24]}  g4 {[%clk 0:00:46]} 41. hxg4 {[%clk 0:00:25]}  hxg4 {[%clk 0:00:45]} 42. b7 {[%clk 0:00:25]}  Re8+ {[%clk 0:00:46]} 43. Kf1 {[%clk 0:00:25]}  g3 {[%clk 0:00:43]} 44. b8=Q+ {[%clk 0:00:25]} 1-0


[Site "https://www.chess.com"]

[Event "Titled Tuesday Blitz August 15 Early 2023"]
[White "Shubenkova, Veronika"]
[Black "Avazkhonov, Alikhon"]
[WhiteFideId "44124040"]
[BlackFideId "14208504"]
[WhiteElo "2482"]
[BlackElo "2395"]
[Result "0-1"]
[Round "9"]
[TimeControl "180+1"]
[Date "2023.08.15"]
[WhiteClock "0:00:46"]
[BlackClock "0:00:05"]
[Board "108"]

1. c4 {[%clk 0:03:00]}  e5 {[%clk 0:01:07]} 2. Nc3 {[%clk 0:03:00]}  d6 {[%clk 0:01:08]} 3. d3 {[%clk 0:02:59]}  f5 {[%clk 0:01:08]} 4. e4 {[%clk 0:02:59]}  Nf6 {[%clk 0:01:09]} 5. f3 {[%clk 0:02:55]}  Nc6 {[%clk 0:01:05]} 6. Be3 {[%clk 0:02:55]}  Be7 {[%clk 0:01:00]} 7. Qd2 {[%clk 0:02:55]}  O-O {[%clk 0:00:59]} 8. Nd5 {[%clk 0:02:55]}  f4 {[%clk 0:00:54]} 9. Bf2 {[%clk 0:02:55]}  Nxd5 {[%clk 0:00:49]} 10. cxd5 {[%clk 0:02:54]}  Nd4 {[%clk 0:00:50]} 11. Ne2 {[%clk 0:02:53]}  c5 {[%clk 0:00:34]} 12. Nxd4 {[%clk 0:02:51]}  exd4 {[%clk 0:00:31]} 13. Be2 {[%clk 0:02:50]}  g5 {[%clk 0:00:31]} 14. g3 {[%clk 0:02:48]}  Kh8 {[%clk 0:00:29]} 15. gxf4 {[%clk 0:02:46]}  gxf4 {[%clk 0:00:30]} 16. O-O-O {[%clk 0:02:46]}  Bh3 {[%clk 0:00:24]} 17. Rhg1 {[%clk 0:02:44]}  Bh4 {[%clk 0:00:20]} 18. Bf1 {[%clk 0:02:43]}  Bd7 {[%clk 0:00:15]} 19. Kb1 {[%clk 0:02:33]}  Qf6 {[%clk 0:00:15]} 20. Qe1 {[%clk 0:02:26]}  Bxf2 {[%clk 0:00:14]} 21. Qxf2 {[%clk 0:02:26]}  Rg8 {[%clk 0:00:15]} 22. Be2 {[%clk 0:02:26]}  b5 {[%clk 0:00:13]} 23. Rc1 {[%clk 0:02:17]}  a5 {[%clk 0:00:10]} 24. a3 {[%clk 0:02:13]}  h6 {[%clk 0:00:09]} 25. Rxg8+ {[%clk 0:02:11]}  Rxg8 {[%clk 0:00:10]} 26. Rg1 {[%clk 0:02:12]}  Rg5 {[%clk 0:00:08]} 27. Rc1 {[%clk 0:02:06]}  Qg6 {[%clk 0:00:06]} 28. Qe1 {[%clk 0:02:02]}  b4 {[%clk 0:00:05]} 29. axb4 {[%clk 0:02:02]}  axb4 {[%clk 0:00:06]} 30. Bf1 {[%clk 0:01:49]}  Qe8 {[%clk 0:00:05]} 31. Qh4 {[%clk 0:01:48]}  Kg7 {[%clk 0:00:03]} 32. Qxf4 {[%clk 0:01:47]}  Qa8 {[%clk 0:00:03]} 33. Qxd6 {[%clk 0:01:34]}  b3 {[%clk 0:00:04]} 34. Qxd7+ {[%clk 0:01:34]}  Kh8 {[%clk 0:00:04]} 35. Rxc5 {[%clk 0:01:24]}  Qa2+ {[%clk 0:00:04]} 36. Kc1 {[%clk 0:01:24]}  Qa1+ {[%clk 0:00:05]} 37. Kd2 {[%clk 0:01:24]}  Qxb2+ {[%clk 0:00:06]} 38. Kd1 {[%clk 0:01:23]}  Qa1+ {[%clk 0:00:06]} 39. Rc1 {[%clk 0:01:23]}  b2 {[%clk 0:00:06]} 40. Qc8+ {[%clk 0:01:12]}  Rg8 {[%clk 0:00:06]} 41. Rxa1 {[%clk 0:01:01]}  bxa1=Q+ {[%clk 0:00:05]} 42. Qc1 {[%clk 0:01:01]}  Qxc1+ {[%clk 0:00:06]} 43. Kxc1 {[%clk 0:01:02]}  Rg1 {[%clk 0:00:06]} 44. Kc2 {[%clk 0:01:01]}  Rxf1 {[%clk 0:00:07]} 45. Kb3 {[%clk 0:01:01]}  Rxf3 {[%clk 0:00:06]} 46. Kc4 {[%clk 0:01:01]}  Kg7 {[%clk 0:00:06]} 47. Kxd4 {[%clk 0:01:01]}  Kf6 {[%clk 0:00:06]} 48. e5+ {[%clk 0:01:02]}  Ke7 {[%clk 0:00:06]} 49. Ke4 {[%clk 0:01:03]}  Rh3 {[%clk 0:00:06]} 50. d4 {[%clk 0:01:03]}  Rxh2 {[%clk 0:00:06]} 51. d6+ {[%clk 0:01:03]}  Kd7 {[%clk 0:00:05]} 52. d5 {[%clk 0:00:57]}  Re2+ {[%clk 0:00:05]} 53. Kf5 {[%clk 0:00:46]}  h5 {[%clk 0:00:05]} 0-1


[Site "https://www.chess.com"]